bitfinex-derivatives/quotes_SOLF0:USTF0_20241224
["timestamp","ask_amount","ask_price","bid_price","bid_amount"]
[1735003988252,12.04155181,189.19,189.09,5.7368]
[1735003988253,2.647,189.13,189.09,5.7368]
[1735003988454,12.04155181,189.19,189.09,3.0895]
[1735003989152,2.647,189.12,189.09,3.0895]
[1735003989350,12.04155181,189.19,189.09,3.0895]
[1735003989556,12.04155181,189.22,189.09,15.13105181]
[1735003989757,2.6462,189.19,189.15,2.6466]
[1735003990956,2.6459,189.2,189.16,2.6464]
[1735003991155,12.04155181,189.25,189.12,15.66155181]
[1735003991661,2.6459,189.21,189.16,2.6464]
[1735003993157,2.6462,189.18,189.14,2.6467]
[1735003993458,12.04155181,189.22,189.11,3.62]
[1735003993653,2.6461,189.19,189.11,6.2672]
[1735003993854,12.04155181,189.22,189.11,2.6472]
[1735003994053,3.62,189.21,189.09,3.0895]
[1735003994249,2.647,189.13,189.09,5.7369]
[1735003996055,12.04155181,189.19,189.09,1.55]
[1735003996253,2.6472,189.11,189.09,1.55]
[1735003996560,12.04155181,189.19,189.09,1.55]
[1735003996763,3.62,189.21,189.09,1.55]
[1735003997060,3.62,189.21,189.1,3.62]
[1735003997257,2.6462,189.18,189.1,3.62]
[1735003997453,3.62,189.21,189.1,3.62]
[1735003998854,2.6464,189.17,189.12,2.647]
[1735003999957,2.6468,189.14,189.1,6.2673]
[1735004000159,2.6468,189.14,189.1,2.6473]
[1735004000662,12.04155181,189.19,189.09,1.55]
[1735004000853,2.6469,189.13,189.09,4.1974]
[1735004003557,12.04155181,189.19,189.09,2.6474]
[1735004003861,2.647,189.12,189.09,2.6474]
[1735004004459,2.647,189.12,189.08,4.2785]
[1735004004762,12.04155181,189.13,189.0,159.04477999]
[1735004004958,12.04155181,189.13,189.0,162.16527999]
[1735004005159,2.6479,189.06,189.02,89.9102843]
[1735004005464,2.6479,189.06,189.02,2.6484]
[1735004006264,12.04155181,189.13,189.0,73.62100488]
[1735004006768,12.04155181,189.13,189.0,18.74205181]
[1735004007064,2.6476,189.09,189.0,18.74205181]
[1735004007261,12.04155181,189.13,189.0,18.74205181]
[1735004007764,12.04155181,189.1,189.0,3.1205]
[1735004008265,2.6477,189.07,189.02,2.6484]
[1735004008465,29.25386494,189.11,189.0,15.16205181]
[1735004008866,29.25386494,189.11,189.0,3.1205]
[1735004009058,29.25386494,189.11,189.01,12.04155181]
[1735004009565,29.25386494,189.13,189.01,12.04155181]
[1735004009968,2.6473,189.11,189.04,2.6481]
[1735004010269,7.31346623,189.13,189.01,15.62155181]
[1735004010657,2.6474,189.1,189.01,15.62155181]
[1735004011164,2.6474,189.1,189.06,2.6477]
[1735004012665,2.6471,189.12,189.07,2.6476]
[1735004012865,2.6471,189.12,189.01,15.62155181]
[1735004013368,10.89346623,189.17,188.93,42.46904614]
[1735004013369,12.04155181,189.03,188.93,42.46904614]
[1735004014066,2.6487,189.0,188.93,42.46904614]
[1735004014468,12.04155181,189.03,188.93,42.46904614]
[1735004014660,2.6489,188.99,188.94,2.6494]
[1735004015059,12.04155181,189.03,188.9,3.2362]
[1735004015462,12.04155181,189.03,188.91,3.58]
[1735004015662,2.6487,189.01,188.96,2.6493]
[1735004017772,3.74537896,189.0,188.96,2.6493]
[1735004017975,3.74537896,188.99,188.96,2.6493]
[1735004018368,3.74537896,188.98,188.96,2.6493]
[1735004018770,3.74537896,188.97,188.96,2.6493]
[1735004022983,3.74537896,188.97,188.94,2.6494]
[1735004023279,3.74537896,188.96,188.92,12.04155181]
[1735004023671,3.74537896,188.95,188.92,12.04155181]
[1735004023878,3.74537896,188.94,188.92,12.04155181]
[1735004024286,3.74537896,188.93,188.92,14.69135181]
[1735004025683,10.16775866,188.93,188.92,14.69135181]
[1735004027387,10.16775866,188.93,188.91,2.6499]
[1735004027890,10.16775866,188.92,188.91,2.6499]
[1735004028283,3.74537896,188.92,188.91,2.6499]
[1735004030287,3.74537896,188.92,188.89,1.74131777]
[1735004030587,3.74537896,188.91,188.89,1.74131777]
[1735004030979,12.81695866,188.97,188.93,2.6496]
[1735004031183,12.81695866,188.97,188.89,1.74131777]
[1735004031588,10.16775866,188.96,188.89,1.74131777]
[1735004032089,10.16775866,188.95,188.89,1.74131777]
[1735004032287,10.16775866,188.94,188.9,2.65]
[1735004032488,10.16775866,188.94,188.89,1.74131777]
[1735004032685,3.74537896,188.93,188.89,1.74131777]
[1735004033189,3.74537896,188.92,188.89,1.74131777]
[1735004033391,10.16775866,188.92,188.89,1.74131777]
[1735004033790,10.16775866,188.96,188.93,2.6496]
[1735004033992,10.16775866,188.95,188.93,2.6496]
[1735004034490,3.74537896,188.94,188.93,2.6496]
[1735004035086,12.81808081,188.94,188.88,15.50155181]
[1735004035691,6.50354896,188.9,188.88,15.50155181]
[1735004036190,10.16775866,188.89,188.88,3.46]
[1735004036591,3.74537896,188.89,188.88,3.46]
[1735004036896,10.16775866,188.89,188.88,3.46]
[1735004037192,3.74537896,188.89,188.88,3.46]
[1735004037692,10.16775866,188.89,188.88,6.1104]
[1735004038089,10.16775866,188.89,188.88,2.6504]
[1735004039692,16.67130762,188.89,188.88,2.6504]
[1735004041391,10.16775866,188.89,188.87,2.6505]
[1735004041595,10.16775866,188.89,188.83,7.75699267]
[1735004041792,10.16775866,188.88,188.85,7.75699267]
[1735004042092,6.50835246,188.86,188.85,10.40779267]
[1735004042296,6.50835246,188.86,188.85,2.6508]
[1735004042499,29.25386494,188.93,188.82,12.12777477]
[1735004042698,11.03167422,188.86,188.85,12.12777477]
[1735004042900,41.98951771,188.93,188.85,12.12777477]
[1735004043201,41.98951771,188.93,188.92,2.6498]
[1735004043202,29.25386494,188.93,188.92,2.6498]
[1735004043395,29.25386494,188.95,188.92,2.6498]
[1735004043598,13.11632798,188.94,188.9,11.81307798]
[1735004043992,29.25386494,188.95,188.9,11.81307798]
[1735004044400,29.25386494,188.95,188.87,12.12777477]
[1735004044401,7.31346623,188.95,188.87,12.12777477]
[1735004044595,7.31346623,188.95,188.87,15.58777477]
[1735004045094,46.93499874,188.95,188.92,2.6498]
[1735004045300,46.93499874,188.95,188.87,15.58777477]
[1735004045901,7.31346623,188.93,188.87,15.58777477]
[1735004046920,7.31346623,188.93,188.88,2.6503]
[1735004047097,7.31346623,188.93,188.87,15.58777477]
[1735004047297,7.31346623,188.93,188.88,3.46]
[1735004047498,7.31346623,188.92,188.91,2.6498]
[1735004047999,29.25386494,188.92,188.91,2.6498]
[1735004049201,58.20429686,188.92,188.91,2.6498]
[1735004051192,58.20429686,188.92,188.88,3.46]
[1735004051597,39.90150049,188.92,188.88,3.46]
[1735004052500,29.28564857,188.93,188.91,2.6498]
[1735004054302,7.32184605,188.93,188.91,2.6498]
[1735004054801,29.28564857,188.93,188.92,2.6498]
[1735004055592,7.32184605,188.93,188.92,2.6498]
[1735004058005,29.28564857,188.94,188.92,2.6498]
[1735004058205,29.28564857,188.94,188.88,3.46]
[1735004058509,29.28564857,188.94,188.93,2.6497]
[1735004059306,29.28564857,188.94,188.88,3.46]
[1735004061010,7.32184605,188.93,188.89,2.6502]
[1735004061312,7.32184605,188.93,188.88,3.46]
[1735004061808,7.32184605,188.94,188.93,2.6497]
[1735004062309,7.32184605,188.94,188.93,10.40494199]
[1735004062911,7.32184605,188.97,188.93,7.75524199]
[1735004063104,7.32184605,188.97,188.95,2.6494]
[1735004063701,7.32184605,188.97,188.95,11.15524199]
[1735004063907,39.90150049,188.98,188.95,11.15524199]
[1735004064213,39.90150049,188.98,188.97,7.75524199]
[1735004064402,21.96380252,188.99,188.98,2.649]
[1735004065209,144.49576643,189.03,188.97,7.75524199]
[1735004065409,7.75524199,189.02,188.96,3.4]
[1735004065710,7.75524199,189.02,188.96,11.15524199]
[1735004065911,39.526206,189.01,188.96,13.80444199]
[1735004066108,39.526206,189.01,188.96,6.0492]
[1735004066307,39.526206,189.01,188.96,3.4]
[1735004066612,39.526206,189.01,189.0,2.6487]
[1735004066809,21.96380252,189.01,189.0,2.6487]
[1735004067614,25.27240252,189.05,189.01,2.6485]
[1735004068414,3.3086,189.05,189.01,2.6485]
[1735004070011,3.3086,189.05,188.97,12.11317863]
[1735004070316,3.3086,189.05,189.02,2.6483]
[1735004070512,3.3086,189.05,188.97,12.11317863]
[1735004070714,3.3086,189.05,188.97,3.4]
[1735004071112,3.3086,189.05,188.64,23.75098465]
[1735004071113,12.11317863,189.03,188.95,2.6494]
[1735004071313,12.11317863,189.03,188.93,3.4]
[1735004071912,34.07698115,189.03,188.94,2.6494]
[1735004072111,34.07698115,189.03,188.93,3.4]
[1735004072112,34.07698115,189.03,188.92,3.4]
[1735004072314,39.46999838,189.02,188.92,3.4]
[1735004073016,39.46999838,189.02,188.95,2.6493]
[1735004073216,39.46999838,189.02,188.92,3.4]
[1735004073217,34.07698115,189.03,188.92,3.4]
[1735004074015,34.07698115,189.03,188.96,2.6491]
[1735004074214,12.11317863,189.03,188.96,2.6491]
[1735004075510,12.11317863,189.03,188.95,2.6494]
[1735004076417,34.07698115,189.03,188.96,2.6491]
[1735004077017,34.07698115,189.03,188.97,2.649]
[1735004077221,21.96380252,189.04,188.97,2.649]
[1735004077419,21.96380252,189.04,188.94,12.11317863]
[1735004078316,25.27240252,189.05,188.94,12.11317863]
[1735004078521,25.27240252,189.05,188.97,12.11317863]
[1735004078721,23.61260252,189.05,188.98,3.4]
[1735004078919,1.6488,189.05,188.98,3.4]
[1735004080023,1.5143,189.09,189.03,2.6482]
[1735004080212,1.5143,189.09,189.0,12.11317863]
[1735004080522,1.5143,189.09,189.07,2.6477]
[1735004080820,1.6361,189.1,189.04,3.4]
[1735004081024,1.6285,189.11,189.04,3.4]
[1735004081619,1.6285,189.11,189.07,2.6477]
[1735004081820,1.6285,189.11,189.04,3.4]
[1735004083520,1.6285,189.11,189.07,2.6477]
[1735004085921,1.6285,189.11,189.04,3.4]
[1735004086123,1.6285,189.11,189.06,2.6478]
[1735004088920,12.11317863,189.07,188.97,2.649]
[1735004089123,12.11317863,189.02,188.97,2.649]
[1735004092525,12.11317863,189.02,188.91,12.11317863]
[1735004093528,12.11317863,189.02,188.97,2.649]
[1735004095630,12.11317863,189.05,188.97,2.649]
[1735004095828,12.11317863,189.05,188.95,2.6493]
[1735004096532,38.87104926,189.04,188.95,2.6493]
[1735004097033,1.5251,189.03,188.95,2.6493]
[1735004098336,12.11317863,189.02,188.93,2.6496]
[1735004098531,1.5251,189.03,188.85,1.5515]
[1735004098532,12.11317863,188.99,188.87,3.4]
[1735004098737,12.11317863,188.99,188.88,12.11317863]
[1735004099238,13.75567863,188.99,188.88,12.11317863]
[1735004099537,13.75567863,188.99,188.91,2.6499]
[1735004100539,1.5021,188.98,188.86,3.4]
[1735004101437,1.5021,188.98,188.89,2.6502]
[1735004102236,1.5021,188.98,188.87,2.6505]
[1735004103937,1.5021,188.98,188.85,14.76397863]
[1735004103938,12.11317863,188.96,188.85,14.76397863]
[1735004104138,1.6626,188.95,188.85,12.11317863]
[1735004104539,1.6626,188.95,188.79,3.4]
[1735004104847,12.11317863,188.93,188.82,12.11317863]
[1735004105041,1.5195,188.92,188.82,12.11317863]
[1735004105843,1.5195,188.92,188.83,2.651]
[1735004106247,1.5195,188.92,188.82,12.11317863]
[1735004107251,1.5195,188.92,188.84,2.6509]
[1735004108847,1.5195,188.92,188.82,12.11317863]
[1735004109042,1.5195,188.92,188.85,2.6508]
[1735004113049,1.5195,188.92,188.84,12.11317863]
[1735004113249,5.0626,188.95,188.84,12.11317863]
[1735004113445,5.0626,188.95,188.88,2.6503]
[1735004113653,1.6626,188.95,188.84,12.11317863]
[1735004114056,1.6626,188.95,188.87,2.6505]
[1735004114352,1.6626,188.95,188.84,12.11317863]
[1735004114949,2.6498,188.92,188.84,12.11317863]
[1735004116051,2.6501,188.91,188.85,2.6508]
[1735004116252,1.6626,188.95,188.85,2.6508]
[1735004116448,1.6626,188.95,188.84,12.11317863]
[1735004116657,2.6502,188.9,188.84,14.76407863]
[1735004120363,2.6502,188.9,188.86,7.76115458]
[1735004121461,1.6626,188.95,188.64,55.1]
[1735004121654,1.6626,188.95,188.75,3.38]
[1735004121859,1.6626,188.95,188.91,7.76115458]
[1735004122359,4.312,188.95,188.91,10.41105458]
[1735004122560,1.6626,188.95,188.91,10.41105458]
[1735004123559,2.6494,188.96,188.91,10.41105458]
[1735004124261,2.6494,188.96,188.91,2.6499]
[1735004126664,12.12018383,188.95,188.79,3.38]
[1735004126864,12.12018383,188.95,188.81,12.12018383]
[1735004127363,41.38176692,188.95,188.81,12.12018383]
[1735004127560,2.6505,188.88,188.83,2.651]
[1735004127956,2.6505,188.87,188.81,12.12018383]
[1735004128157,2.6505,188.87,188.82,2.6512]
[1735004128365,12.12018383,188.89,188.65,58.98548451]
[1735004128666,2.6515,188.81,188.74,14.77248383]
[1735004128867,3.38,188.85,188.74,12.12018383]
[1735004129178,2.6513,188.82,188.76,2.652]
[1735004132568,2.6514,188.81,188.74,12.12018383]
[1735004133267,2.6514,188.81,188.74,15.50018383]
[1735004133466,2.6514,188.81,188.75,2.6522]
[1735004133671,2.6514,188.81,188.75,12.12018383]
[1735004133967,3.38,188.85,188.75,12.12018383]
[1735004134171,7.29778057,188.84,188.71,1.5508]
[1735004134470,7.29778057,188.84,188.73,12.12018383]
[1735004134865,7.29778057,188.84,188.76,12.12018383]
[1735004135565,2.6516,188.8,188.76,12.12018383]
[1735004136164,2.6516,188.8,188.74,2.6524]
[1735004137071,2.6517,188.79,188.74,2.6524]
[1735004139370,10.68157141,188.85,188.73,12.12018383]
[1735004139661,2.6517,188.79,188.73,12.12018383]
[1735004140567,2.6515,188.8,188.74,2.6523]
[1735004143472,12.12018383,188.84,188.72,2.6525]
[1735004143766,12.12018383,188.84,188.71,4.9308]
[1735004143968,2.6517,188.8,188.74,2.6523]
[1735004144171,2.6517,188.8,188.75,7.76949955]
[1735004144368,7.76949955,188.82,188.75,7.76949955]
[1735004144564,2.6517,188.79,188.75,7.76949955]
[1735004144870,7.76949955,188.82,188.75,10.42169955]
[1735004145072,2.6515,188.8,188.75,10.42169955]
[1735004145469,7.76949955,188.82,188.75,7.76949955]
[1735004146573,2.6515,188.8,188.75,7.76949955]
[1735004147178,7.76949955,188.82,188.71,1.5508]
[1735004147373,7.76949955,188.8,188.74,7.76949955]
[1735004147971,2.6523,188.75,188.74,7.76949955]
[1735004148771,2.6518,188.78,188.72,7.76949955]
[1735004148972,7.76949955,188.8,188.7,2.6528]
[1735004149172,7.76949955,188.78,188.72,7.76949955]
[1735004149372,2.6526,188.73,188.72,7.76949955]
[1735004150282,2.6524,188.74,188.72,7.76949955]
[1735004151079,7.76949955,188.78,188.72,7.76949955]
[1735004151277,2.6521,188.76,188.72,7.76949955]
[1735004152677,2.6521,188.76,188.72,10.42209955]
[1735004153075,7.76949955,188.78,188.72,7.76949955]
[1735004153374,2.6524,188.74,188.72,7.76949955]
[1735004153575,7.76949955,188.76,188.7,7.76949955]
[1735004153969,7.76949955,188.76,188.69,7.76949955]
[1735004154378,2.6529,188.7,188.69,7.76949955]
[1735004155175,2.6532,188.68,188.52,113.97284026]
[1735004155377,11.16949955,188.74,188.66,7.76949955]
[1735004156582,2.6528,188.71,188.68,7.76949955]
[1735004156982,11.16949955,188.74,188.68,7.76949955]
[1735004157282,2.6527,188.72,188.68,7.76949955]
[1735004158078,2.6528,188.71,188.66,2.6534]
[1735004158278,2.6528,188.71,188.67,7.76949955]
[1735004158476,11.16949955,188.74,188.67,7.76949955]
[1735004159575,2.6527,188.72,188.67,10.42279955]
[1735004159781,3.4,188.74,188.67,7.76949955]
[1735004160778,3.4,188.74,188.69,7.76949955]
[1735004160983,7.76949955,188.76,188.69,7.76949955]
[1735004161779,10.42159955,188.76,188.71,2.6527]
[1735004161985,1.5611,188.78,188.71,7.76949955]
[1735004162986,2.6522,188.76,188.71,10.42229955]
[1735004169488,2.6522,188.76,188.72,2.6526]
[1735004170388,2.6522,188.76,188.73,7.76949955]
[1735004172089,2.6522,188.76,188.72,2.6526]
[1735004173692,2.6522,188.76,188.72,10.42209955]
[1735004174287,2.6522,188.76,188.71,2.6527]
[1735004174588,10.42179955,188.75,188.66,3.4]
[1735004174792,10.42179955,188.75,188.68,7.76949955]
[1735004174987,10.42179955,188.75,188.69,2.6529]
[1735004175592,2.6523,188.75,188.7,7.76949955]
[1735004178191,2.6523,188.75,188.69,2.6529]
[1735004181597,2.6524,188.74,188.69,2.6529]
[1735004183206,7.76949955,188.77,188.65,3.4]
[1735004183499,2.6526,188.72,188.68,7.76949955]
[1735004183705,11.12949955,188.75,188.61,61.50673092]
[1735004183907,7.76949955,188.73,188.66,7.76949955]
[1735004184102,3.2175,188.72,188.66,7.76949955]
[1735004184501,3.2175,188.72,188.68,7.76949955]
[1735004186608,1.5631,188.72,188.68,7.76949955]
[1735004188405,1.5631,188.72,188.67,10.42279955]
[1735004191106,1.5631,188.72,188.6,59.02156992]
[1735004191306,7.76949955,188.69,188.57,152.6062356]
[1735004191507,7.76949955,188.69,188.62,7.76949955]
[1735004191705,7.76949955,188.69,188.58,62.46276358]
[1735004192013,7.76949955,188.69,188.63,7.76949955]
[1735004192305,7.76949955,188.69,188.59,3.36]
[1735004192607,2.6532,188.68,188.62,10.42349955]
[1735004192808,2.6532,188.68,188.62,2.654]
[1735004193012,2.6532,188.68,188.62,10.42349955]
[1735004193309,2.6535,188.67,188.61,2.6541]
[1735004193509,2.6535,188.67,188.62,7.76949955]
[1735004193809,7.76949955,188.67,188.6,7.76949955]
[1735004194306,7.76949955,188.67,188.58,59.10276358]
[1735004194497,2.6539,188.64,188.6,7.76949955]
[1735004195311,7.76949955,188.69,188.6,7.76949955]
[1735004195499,7.76949955,188.69,188.61,7.76949955]
[1735004195705,2.6534,188.67,188.61,7.76949955]
[1735004195904,1.6434,188.7,188.63,7.76949955]
[1735004195905,9.41289955,188.7,188.63,7.76949955]
[1735004197206,2.6533,188.68,188.63,7.76949955]
[1735004197808,7.76949955,188.68,188.56,3.36]
[1735004198006,2.6537,188.65,188.6,7.76949955]
[1735004200203,10.42299955,188.66,188.6,7.76949955]
[1735004200407,7.76949955,188.66,188.6,7.76949955]
[1735004201415,2.6538,188.64,188.6,7.76949955]
[1735004202211,2.654,188.63,188.58,7.76949955]
[1735004203815,2.6536,188.66,188.6,7.76949955]
[1735004204812,2.6537,188.65,188.6,7.76949955]
[1735004205517,2.6538,188.64,188.59,2.6544]
[1735004207315,2.6538,188.64,188.55,3.38]
[1735004207520,2.6542,188.61,188.55,3.38]
[1735004207716,7.76949955,188.63,188.52,5.8425]
[1735004207919,7.76949955,188.63,188.55,7.76949955]
[1735004208317,2.6544,188.6,188.55,7.76949955]
[1735004209221,2.6544,188.6,188.52,5.8425]
[1735004209412,2.6544,188.6,188.56,7.76949955]
[1735004210218,2.6544,188.6,188.55,2.655]
[1735004210423,2.6546,188.58,188.55,7.76949955]
[1735004211626,2.6546,188.58,188.48,2.21572514]
[1735004211924,2.6546,188.58,188.53,7.76949955]
[1735004212428,2.6546,188.58,188.52,10.42489955]
[1735004212729,2.6548,188.57,188.54,7.76949955]
[1735004214023,2.6548,188.57,188.52,10.42489955]
[1735004214318,2.6548,188.57,188.52,2.6554]
[1735004214518,2.6548,188.57,188.52,10.42489955]
[1735004215626,7.76949955,188.59,188.52,7.76949955]
[1735004215824,7.76949955,188.59,188.54,7.76949955]
[1735004216524,2.6546,188.58,188.54,7.76949955]
[1735004216925,2.6546,188.58,188.53,2.6553]
[1735004217126,10.42419955,188.57,188.52,2.6554]
[1735004219026,10.42419955,188.57,188.51,2.6556]
[1735004219222,10.42419955,188.57,188.51,10.42509955]
[1735004219531,10.42419955,188.57,188.51,2.6556]
[1735004220131,2.655,188.55,188.48,2.6559]
[1735004220331,2.655,188.55,188.49,7.76949955]
[1735004220726,10.42439955,188.57,188.51,7.76949955]
[1735004222530,7.76949955,188.57,188.42,0.4119]
[1735004222833,1.5441,188.58,188.46,7.76949955]
[1735004223035,1.5441,188.58,188.5,7.76949955]
[1735004223331,1.5539,188.63,188.52,7.76949955]
[1735004223638,7.76949955,188.59,188.52,7.76949955]
[1735004224437,7.76949955,188.59,188.52,10.42489955]
[1735004224438,2.6547,188.58,188.52,10.42489955]
[1735004224640,2.6547,188.58,188.52,2.6554]
[1735004225540,2.6549,188.56,188.51,10.42509955]
[1735004226239,2.6551,188.55,188.51,7.76949955]
[1735004226441,7.76949955,188.57,188.51,7.76949955]
[1735004226739,7.76949955,188.57,188.49,7.76949955]
[1735004226937,7.76949955,188.57,188.45,3.7]
[1735004227138,7.76949955,188.57,188.48,7.76949955]
[1735004227338,2.6554,188.53,188.48,7.76949955]
[1735004227639,7.76949955,188.57,188.48,7.76949955]
[1735004227839,2.6552,188.54,188.48,10.42549955]
[1735004228141,7.76949955,188.56,188.45,3.7]
[1735004228339,7.76949955,188.56,188.48,7.76949955]
[1735004229040,2.6553,188.53,188.48,7.76949955]
[1735004230440,2.6555,188.52,188.46,7.76949955]
[1735004230740,7.76949955,188.52,188.45,10.42579955]
[1735004231441,2.6556,188.51,188.45,10.42579955]
[1735004231939,2.6556,188.51,188.45,7.76949955]
[1735004232244,2.6556,188.51,188.46,2.6563]
[1735004233540,10.42499955,188.52,188.46,2.6563]
[1735004233937,7.76949955,188.52,188.46,2.6563]
[1735004234536,2.6553,188.53,188.47,7.76949955]
[1735004234742,7.76949955,188.54,188.47,7.76949955]
[1735004235539,2.6555,188.52,188.47,7.76949955]
[1735004235740,1.6148,188.55,188.47,7.76949955]
[1735004236040,1.6148,188.55,188.42,4.1119]
[1735004236041,9.38369955,188.56,188.49,7.76949955]
[1735004236443,2.655,188.55,188.46,2.6562]
[1735004236639,2.655,188.55,188.49,7.76949955]
[1735004236937,9.38369955,188.56,188.49,7.76949955]
[1735004237141,2.6552,188.54,188.49,7.76949955]
[1735004237534,2.655,188.55,188.49,10.42519955]
[1735004237934,2.655,188.55,188.49,2.6557]
[1735004238135,2.655,188.55,188.49,10.42519955]
[1735004239344,2.655,188.55,188.49,7.76949955]
[1735004239536,5.3068,188.67,188.51,7.76949955]
[1735004239841,7.76949955,188.59,188.53,7.76949955]
[1735004240041,3.7,188.64,188.53,7.76949955]
[1735004240243,7.76949955,188.59,188.53,10.42479955]
[1735004240544,3.7,188.64,188.53,10.42479955]
[1735004240745,2.6544,188.6,188.55,2.6549]
[1735004241740,4.6785,188.66,188.57,7.76949955]
[1735004242240,3.7,188.69,188.57,7.76949955]
[1735004242241,7.76949955,188.67,188.61,7.76949955]
[1735004242542,7.76949955,188.7,188.63,7.76949955]
[1735004243143,7.76949955,188.68,188.63,7.76949955]
[1735004243549,7.76949955,188.68,188.63,10.42329955]
[1735004244237,7.76949955,188.68,188.63,2.6538]
[1735004245050,7.76949955,188.68,188.63,10.42329955]
[1735004245252,2.6531,188.69,188.63,10.42329955]
[1735004245443,2.6529,188.71,188.65,10.42309955]
[1735004245638,17.86543659,188.77,188.67,7.76949955]
[1735004245840,4.8417,188.8,188.69,7.76949955]
[1735004246045,2.6523,188.75,188.69,7.76949955]
[1735004246247,2.6523,188.75,188.69,11.46949955]
[1735004248948,7.76949955,188.74,188.68,2.6532]
[1735004249152,7.76949955,188.72,188.67,7.76949955]
[1735004249346,7.76949955,188.72,188.65,7.76949955]
[1735004250451,2.6528,188.71,188.65,10.42309955]
[1735004250951,2.6528,188.71,188.64,3.64]
[1735004251141,2.6528,188.71,188.65,7.76949955]
[1735004251544,2.6525,188.73,188.67,7.76949955]
[1735004251746,4.8417,188.8,188.69,7.76949955]
[1735004251747,7.76949955,188.75,188.69,7.76949955]
[1735004253444,10.42179955,188.75,188.69,7.76949955]
[1735004254751,4.8417,188.8,188.69,7.76949955]
[1735004254953,7.76949955,188.75,188.69,10.42239955]
[1735004255355,7.76949955,188.75,188.69,7.76949955]
[1735004255557,10.42179955,188.75,188.68,2.6532]
[1735004256655,7.76949955,188.75,188.68,2.6532]
[1735004256956,2.6524,188.74,188.68,2.6532]
[1735004257647,2.6526,188.73,188.67,7.76949955]
[1735004258354,10.42209955,188.73,188.67,7.76949955]
[1735004258758,10.42209955,188.73,188.67,10.42279955]
[1735004258950,10.42209955,188.73,188.67,2.6533]
[1735004259153,2.6529,188.71,188.66,7.76949955]
[1735004259356,7.76949955,188.73,188.66,7.76949955]
[1735004259857,7.76949955,188.71,188.64,11.40949955]
[1735004260352,7.76949955,188.71,188.56,0.4083]
[1735004260659,3.64,188.75,188.62,7.76949955]
[1735004260660,7.76949955,188.69,188.62,7.76949955]
[1735004260851,7.76949955,188.67,188.6,7.76949955]
[1735004262553,4.6742,188.7,188.62,7.76949955]
[1735004262758,4.6742,188.7,188.64,7.76949955]
[1735004263553,2.6532,188.68,188.64,7.76949955]
[1735004263963,3.64,188.75,188.66,7.76949955]
[1735004264258,3.64,188.79,188.66,7.76949955]
[1735004264458,7.76949955,188.74,188.66,7.76949955]
[1735004264860,2.6528,188.71,188.66,7.76949955]
[1735004266455,2.6528,188.71,188.65,6.2935]
[1735004266661,2.653,188.7,188.65,7.76949955]
[1735004267361,7.76949955,188.7,188.63,3.64]
[1735004267562,7.76949955,188.7,188.63,11.40949955]
[1735004267960,7.76949955,188.7,188.6,3.64]
[1735004268165,1.6361,188.69,188.62,7.76949955]
[1735004268365,3.2008,188.69,188.62,7.76949955]
[1735004268669,2.6537,188.65,188.6,7.76949955]
[1735004268866,7.76949955,188.66,188.58,11.40949955]
[1735004269362,7.76949955,188.62,188.53,3.64]
[1735004269563,7.76949955,188.62,188.54,7.76949955]
[1735004269759,2.6545,188.59,188.54,7.76949955]
[1735004270463,7.76949955,188.6,188.52,7.76949955]
[1735004270766,7.76949955,188.58,188.51,11.40949955]
[1735004271369,7.76949955,188.58,188.51,3.64]
[1735004271567,7.76949955,188.58,188.51,11.40949955]
[1735004271766,2.6549,188.56,188.51,11.40949955]
[1735004271967,7.76949955,188.58,188.51,11.40949955]
[1735004272264,12.17072793,188.61,188.51,3.64]
[1735004272461,2.6549,188.56,188.51,3.64]
[1735004272861,12.17072793,188.58,188.44,0.4089]
[1735004273057,12.17072793,188.58,188.45,15.81072793]
[1735004273470,8.4003,188.6,188.48,12.17072793]
[1735004273667,4.7603,188.6,188.45,3.64]
[1735004273867,4.7603,188.6,188.51,12.17072793]
[1735004274069,4.7603,188.6,188.51,15.81072793]
[1735004274261,4.7603,188.6,188.51,3.64]
[1735004274662,4.7603,188.6,188.48,3.64]
[1735004274867,2.6549,188.56,188.5,2.6557]
[1735004275069,2.6549,188.56,188.49,12.17072793]
[1735004275265,2.6554,188.53,188.48,3.64]
[1735004275467,2.6554,188.53,188.48,15.81072793]
[1735004275771,2.6554,188.53,188.48,3.64]